[Event "Titled Tuesday Blitz January 03 Early 2023"]
[White "Kamsky, Gata"]
[Black "Mei, Austin"]
[WhiteFideId "2000024"]
[BlackFideId "30948479"]
[WhiteElo "2665"]
[BlackElo "2218"]
[Result "1-0"]
[Round "02"]
[TimeControl "180+2"]
[Date "2023.01.03"]
[WhiteClock "0:02:03"]
[BlackClock "0:01:46"]

1. d4 {[%clk 0:03:00]}  Nf6 {[%clk 0:02:58]} 2. Bf4 {[%clk 0:02:48]}  d6 {[%clk 0:02:55]} 3. Nf3 {[%clk 0:02:42]}  g6 {[%clk 0:02:54]} 4. h3 {[%clk 0:02:41]}  Bg7 {[%clk 0:02:54]} 5. c3 {[%clk 0:02:39]}  O-O {[%clk 0:02:54]} 6. Nbd2 {[%clk 0:02:36]}  Nbd7 {[%clk 0:02:54]} 7. e4 {[%clk 0:02:33]}  e5 {[%clk 0:02:50]} 8. dxe5 {[%clk 0:02:32]}  Nh5 {[%clk 0:02:49]} 9. Bg5 {[%clk 0:02:30]}  Qe8 {[%clk 0:02:31]} 10. exd6 {[%clk 0:02:24]}  cxd6 {[%clk 0:02:21]} 11. Be2 {[%clk 0:02:23]}  Nc5 {[%clk 0:02:19]} 12. O-O {[%clk 0:02:19]}  Nxe4 {[%clk 0:02:15]} 13. Nxe4 {[%clk 0:02:18]}  Qxe4 {[%clk 0:02:16]} 14. Re1 {[%clk 0:02:13]}  Nf4 {[%clk 0:01:45]} 15. Bf1 {[%clk 0:02:08]}  Qf5 {[%clk 0:01:46]} 16. g4 {[%clk 0:02:03]} 1-0


[Site "https://www.chess.com"]

[Event "Titled Tuesday Blitz January 03 Early 2023"]
[White "Lashkin, Jegor"]
[Black "Golubova, Anna"]
[WhiteFideId "13907808"]
[BlackFideId "24173606"]
[WhiteElo "2416"]
[BlackElo "2156"]
[Result "1-0"]
[Round "02"]
[TimeControl "180+2"]
[Date "2023.01.03"]
[WhiteClock "0:00:59"]
[BlackClock "0:00:01"]

1. c4 {[%clk 0:03:00]}  c6 {[%clk 0:02:58]} 2. Nf3 {[%clk 0:02:59]}  d5 {[%clk 0:02:59]} 3. g3 {[%clk 0:03:00]}  Nf6 {[%clk 0:02:59]} 4. Bg2 {[%clk 0:03:00]}  Bf5 {[%clk 0:03:00]} 5. Qb3 {[%clk 0:02:56]}  Qb6 {[%clk 0:02:56]} 6. d3 {[%clk 0:02:55]}  e6 {[%clk 0:02:54]} 7. Be3 {[%clk 0:02:55]}  Qc7 {[%clk 0:02:53]} 8. Nc3 {[%clk 0:02:50]}  Nbd7 {[%clk 0:02:51]} 9. cxd5 {[%clk 0:02:38]}  exd5 {[%clk 0:02:48]} 10. Rc1 {[%clk 0:02:38]}  Nb6 {[%clk 0:02:37]} 11. O-O {[%clk 0:02:27]}  Be7 {[%clk 0:02:29]} 12. a4 {[%clk 0:02:20]}  Rd8 {[%clk 0:01:50]} 13. Nd4 {[%clk 0:02:01]}  Bg6 {[%clk 0:01:39]} 14. Ncb5 {[%clk 0:01:51]}  Qb8 {[%clk 0:01:32]} 15. Bf4 {[%clk 0:01:50]}  Bd6 {[%clk 0:01:32]} 16. Nxd6+ {[%clk 0:01:49]}  Rxd6 {[%clk 0:01:29]} 17. Bxd6 {[%clk 0:01:46]}  Qxd6 {[%clk 0:01:28]} 18. a5 {[%clk 0:01:47]}  Nbd7 {[%clk 0:01:21]} 19. Qxb7 {[%clk 0:01:46]}  O-O {[%clk 0:01:19]} 20. Nxc6 {[%clk 0:01:46]}  Re8 {[%clk 0:01:13]} 21. Rfe1 {[%clk 0:01:41]}  h5 {[%clk 0:01:06]} 22. Qb4 {[%clk 0:01:38]}  Qe6 {[%clk 0:00:59]} 23. Nxa7 {[%clk 0:01:36]}  Ne5 {[%clk 0:00:47]} 24. Nb5 {[%clk 0:01:31]}  Rb8 {[%clk 0:00:26]} 25. Qa4 {[%clk 0:01:26]}  Nfg4 {[%clk 0:00:17]} 26. Nc7 {[%clk 0:01:22]}  Qf6 {[%clk 0:00:16]} 27. Qf4 {[%clk 0:01:21]}  Qd6 {[%clk 0:00:16]} 28. Nxd5 {[%clk 0:01:17]}  Rxb2 {[%clk 0:00:15]} 29. d4 {[%clk 0:01:14]}  Ra2 {[%clk 0:00:05]} 30. dxe5 {[%clk 0:01:13]}  Qa3 {[%clk 0:00:05]} 31. Qb4 {[%clk 0:01:02]}  Qxa5 {[%clk 0:00:02]} 32. Qxa5 {[%clk 0:01:02]}  Rxa5 {[%clk 0:00:03]} 33. Ne7+ {[%clk 0:00:58]}  Kh7 {[%clk 0:00:01]} 34. Nxg6 {[%clk 0:00:59]} 1-0


[Site "https://www.chess.com"]

[Event "Titled Tuesday Blitz January 03 Early 2023"]
[White "Ordekalog"]
[Black "Melikhov, Evgeny V."]
[BlackFideId "4122046"]
[WhiteElo "2701"]
[BlackElo "2269"]
[Result "1-0"]
[Round "02"]
[TimeControl "180+2"]
[Date "2023.01.03"]
[WhiteClock "0:00:26"]
[BlackClock "0:00:23"]

1. e4 {[%clk 0:03:00]}  e5 {[%clk 0:02:58]} 2. Nf3 {[%clk 0:03:00]}  Nc6 {[%clk 0:02:59]} 3. Bb5 {[%clk 0:02:59]}  a6 {[%clk 0:02:58]} 4. Bxc6 {[%clk 0:02:59]}  dxc6 {[%clk 0:02:58]} 5. O-O {[%clk 0:03:00]}  f6 {[%clk 0:02:58]} 6. d4 {[%clk 0:03:00]}  exd4 {[%clk 0:02:58]} 7. Nxd4 {[%clk 0:03:00]}  c5 {[%clk 0:02:59]} 8. Nb3 {[%clk 0:03:00]}  Qxd1 {[%clk 0:02:59]} 9. Rxd1 {[%clk 0:03:00]}  Bd7 {[%clk 0:02:59]} 10. Bf4 {[%clk 0:02:59]}  O-O-O {[%clk 0:02:59]} 11. Nc3 {[%clk 0:02:59]}  Be6 {[%clk 0:02:59]} 12. Rxd8+ {[%clk 0:02:57]}  Kxd8 {[%clk 0:02:59]} 13. Rd1+ {[%clk 0:02:57]}  Kc8 {[%clk 0:02:59]} 14. Nd5 {[%clk 0:02:57]}  Bxd5 {[%clk 0:02:59]} 15. Rxd5 {[%clk 0:02:56]}  b6 {[%clk 0:02:59]} 16. a4 {[%clk 0:02:54]}  a5 {[%clk 0:02:56]} 17. Nd2 {[%clk 0:02:47]}  Ne7 {[%clk 0:02:55]} 18. Rd3 {[%clk 0:02:46]}  Nc6 {[%clk 0:02:55]} 19. c3 {[%clk 0:02:46]}  Be7 {[%clk 0:02:53]} 20. Nc4 {[%clk 0:02:45]}  g5 {[%clk 0:02:39]} 21. Bg3 {[%clk 0:02:44]}  h5 {[%clk 0:02:39]} 22. h4 {[%clk 0:02:43]}  Rd8 {[%clk 0:02:22]} 23. Rxd8+ {[%clk 0:02:42]}  Bxd8 {[%clk 0:02:22]} 24. f3 {[%clk 0:02:41]}  Kd7 {[%clk 0:02:19]} 25. Kf2 {[%clk 0:02:40]}  Ke6 {[%clk 0:02:19]} 26. Ne3 {[%clk 0:02:37]}  Ne5 {[%clk 0:02:15]} 27. Ke2 {[%clk 0:02:30]}  c6 {[%clk 0:02:02]} 28. b3 {[%clk 0:02:24]}  b5 {[%clk 0:01:43]} 29. c4 {[%clk 0:02:22]}  bxa4 {[%clk 0:01:26]} 30. bxa4 {[%clk 0:02:20]}  Nd7 {[%clk 0:01:08]} 31. Nf5 {[%clk 0:02:16]}  Nb6 {[%clk 0:01:06]} 32. Kd3 {[%clk 0:02:12]}  Nxa4 {[%clk 0:01:05]} 33. Be1 {[%clk 0:02:03]}  Nb2+ {[%clk 0:01:01]} 34. Kc3 {[%clk 0:02:03]}  Na4+ {[%clk 0:00:56]} 35. Kb3 {[%clk 0:02:00]}  Nb6 {[%clk 0:00:55]} 36. Bxa5 {[%clk 0:01:51]}  Kd7 {[%clk 0:00:51]} 37. Bxb6 {[%clk 0:01:39]}  Bxb6 {[%clk 0:00:50]} 38. Ng7 {[%clk 0:01:37]}  gxh4 {[%clk 0:00:50]} 39. Nxh5 {[%clk 0:01:36]}  Ke6 {[%clk 0:00:49]} 40. Kc3 {[%clk 0:01:18]}  Ke5 {[%clk 0:00:47]} 41. Kd3 {[%clk 0:01:17]}  Bc7 {[%clk 0:00:44]} 42. f4+ {[%clk 0:01:16]}  Ke6 {[%clk 0:00:42]} 43. Ke3 {[%clk 0:01:13]}  Kf7 {[%clk 0:00:41]} 44. Kf3 {[%clk 0:01:13]}  Kg6 {[%clk 0:00:41]} 45. Kg4 {[%clk 0:01:13]}  Bb8 {[%clk 0:00:36]} 46. f5+ {[%clk 0:01:03]}  Kf7 {[%clk 0:00:34]} 47. Kxh4 {[%clk 0:01:02]}  Be5 {[%clk 0:00:34]} 48. Kg4 {[%clk 0:00:59]}  Bd4 {[%clk 0:00:34]} 49. Nf4 {[%clk 0:00:57]}  Ke7 {[%clk 0:00:32]} 50. Kh5 {[%clk 0:00:52]}  Kf7 {[%clk 0:00:32]} 51. g4 {[%clk 0:00:50]}  Be5 {[%clk 0:00:30]} 52. Nd3 {[%clk 0:00:48]}  Bd4 {[%clk 0:00:30]} 53. g5 {[%clk 0:00:47]}  fxg5 {[%clk 0:00:30]} 54. Kxg5 {[%clk 0:00:45]}  Be3+ {[%clk 0:00:30]} 55. Kg4 {[%clk 0:00:44]}  Kf6 {[%clk 0:00:30]} 56. e5+ {[%clk 0:00:44]}  Ke7 {[%clk 0:00:30]} 57. Kh5 {[%clk 0:00:41]}  Bd2 {[%clk 0:00:28]} 58. Kg6 {[%clk 0:00:40]}  Be3 {[%clk 0:00:27]} 59. Kg7 {[%clk 0:00:29]}  Bd4 {[%clk 0:00:26]} 60. f6+ {[%clk 0:00:27]}  Ke6 {[%clk 0:00:23]} 61. f7 {[%clk 0:00:26]} 1-0


[Site "https://www.chess.com"]

[Event "Titled Tuesday Blitz January 03 Early 2023"]
[White "Dourerassou, Jonathan"]
[Black "Silva, Caio Henrique Angelico"]
[WhiteFideId "628050"]
[BlackFideId "22777210"]
[WhiteElo "2414"]
[BlackElo "2129"]
[Result "1-0"]
[Round "02"]
[TimeControl "180+2"]
[Date "2023.01.03"]
[WhiteClock "0:02:14"]
[BlackClock "0:01:17"]

1. d4 {[%clk 0:03:00]}  Nf6 {[%clk 0:02:55]} 2. Bg5 {[%clk 0:03:00]}  d5 {[%clk 0:02:49]} 3. Bxf6 {[%clk 0:02:59]}  gxf6 {[%clk 0:02:37]} 4. g3 {[%clk 0:02:57]}  c6 {[%clk 0:02:34]} 5. Bg2 {[%clk 0:02:57]}  Bf5 {[%clk 0:02:33]} 6. c3 {[%clk 0:02:56]}  e6 {[%clk 0:02:33]} 7. Nf3 {[%clk 0:02:56]}  Nd7 {[%clk 0:02:31]} 8. Nbd2 {[%clk 0:02:56]}  Bg6 {[%clk 0:02:28]} 9. Nh4 {[%clk 0:02:56]}  Be7 {[%clk 0:02:27]} 10. e4 {[%clk 0:02:56]}  dxe4 {[%clk 0:02:25]} 11. Nxg6 {[%clk 0:02:52]}  hxg6 {[%clk 0:02:22]} 12. Nxe4 {[%clk 0:02:52]}  f5 {[%clk 0:02:19]} 13. Nd2 {[%clk 0:02:51]}  Qb6 {[%clk 0:02:18]} 14. Qb3 {[%clk 0:02:51]}  e5 {[%clk 0:02:06]} 15. d5 {[%clk 0:02:43]}  e4 {[%clk 0:01:58]} 16. dxc6 {[%clk 0:02:43]}  bxc6 {[%clk 0:01:53]} 17. Nc4 {[%clk 0:02:42]}  Qxb3 {[%clk 0:01:51]} 18. axb3 {[%clk 0:02:43]}  Nc5 {[%clk 0:01:51]} 19. b4 {[%clk 0:02:30]}  Nd3+ {[%clk 0:01:50]} 20. Ke2 {[%clk 0:02:30]}  c5 {[%clk 0:01:38]} 21. b5 {[%clk 0:02:28]}  Rb8 {[%clk 0:01:35]} 22. Rxa7 {[%clk 0:02:22]}  Kf8 {[%clk 0:01:22]} 23. b6 {[%clk 0:02:20]}  Bd8 {[%clk 0:01:18]} 24. b7 {[%clk 0:02:14]}  Kg7 {[%clk 0:01:18]} 25. f3 {[%clk 0:02:13]}  exf3+ {[%clk 0:01:17]} 26. Bxf3 {[%clk 0:02:14]} 1-0


[Site "https://www.chess.com"]

[Event "Titled Tuesday Blitz January 03 Early 2023"]
[White "Salimova, Nurgyul"]
[Black "Mihailidis, Anastasios"]
[WhiteFideId "2915138"]
[BlackFideId "4205588"]
[WhiteElo "2391"]
[BlackElo "2208"]
[Result "1-0"]
[Round "02"]
[TimeControl "180+2"]
[Date "2023.01.03"]
[WhiteClock "0:00:25"]
[BlackClock "0:00:07"]

1. d4 {[%clk 0:03:00]}  d5 {[%clk 0:02:59]} 2. Nf3 {[%clk 0:03:01]}  Nf6 {[%clk 0:02:58]} 3. c4 {[%clk 0:03:01]}  e6 {[%clk 0:02:59]} 4. g3 {[%clk 0:03:01]}  Be7 {[%clk 0:02:59]} 5. Bg2 {[%clk 0:03:01]}  O-O {[%clk 0:02:59]} 6. Nc3 {[%clk 0:02:55]}  dxc4 {[%clk 0:02:57]} 7. Ne5 {[%clk 0:02:55]}  Nc6 {[%clk 0:02:56]} 8. Bxc6 {[%clk 0:02:55]}  bxc6 {[%clk 0:02:56]} 9. Nxc6 {[%clk 0:02:56]}  Qe8 {[%clk 0:02:56]} 10. Nxe7+ {[%clk 0:02:56]}  Qxe7 {[%clk 0:02:56]} 11. Qa4 {[%clk 0:02:57]}  Bb7 {[%clk 0:02:52]} 12. f3 {[%clk 0:02:42]}  c5 {[%clk 0:02:00]} 13. Qxc4 {[%clk 0:02:19]}  cxd4 {[%clk 0:01:57]} 14. Qxd4 {[%clk 0:02:20]}  Rfd8 {[%clk 0:01:56]} 15. Qh4 {[%clk 0:02:15]}  Qc5 {[%clk 0:01:54]} 16. Bg5 {[%clk 0:02:11]}  Rd4 {[%clk 0:01:41]} 17. Be3 {[%clk 0:02:08]}  Ng4 {[%clk 0:01:09]} 18. Bxd4 {[%clk 0:01:16]}  Qxd4 {[%clk 0:01:08]} 19. Qxg4 {[%clk 0:01:12]}  Qxg4 {[%clk 0:01:08]} 20. fxg4 {[%clk 0:01:13]}  Bxh1 {[%clk 0:01:07]} 21. O-O-O {[%clk 0:01:08]}  Bc6 {[%clk 0:00:59]} 22. b4 {[%clk 0:01:03]}  Kf8 {[%clk 0:00:55]} 23. b5 {[%clk 0:00:58]}  Be8 {[%clk 0:00:55]} 24. a4 {[%clk 0:00:57]}  Rc8 {[%clk 0:00:51]} 25. Kb2 {[%clk 0:00:56]}  Ke7 {[%clk 0:00:45]} 26. Kb3 {[%clk 0:00:56]}  f6 {[%clk 0:00:31]} 27. Kb4 {[%clk 0:00:54]}  e5 {[%clk 0:00:29]} 28. Rd5 {[%clk 0:00:46]}  Bf7 {[%clk 0:00:26]} 29. Rc5 {[%clk 0:00:44]}  Rd8 {[%clk 0:00:25]} 30. Rc7+ {[%clk 0:00:44]}  Kf8 {[%clk 0:00:22]} 31. Rxa7 {[%clk 0:00:39]}  Rd4+ {[%clk 0:00:22]} 32. Ka5 {[%clk 0:00:36]}  Rc4 {[%clk 0:00:22]} 33. b6 {[%clk 0:00:30]}  Rxc3 {[%clk 0:00:20]} 34. b7 {[%clk 0:00:27]}  Rc5+ {[%clk 0:00:13]} 35. Kb6 {[%clk 0:00:25]}  Rc1 {[%clk 0:00:08]} 36. b8=Q+ {[%clk 0:00:25]}  Be8 {[%clk 0:00:08]} 37. Qd6+ {[%clk 0:00:25]}  Kg8 {[%clk 0:00:07]} 38. Qe6+ {[%clk 0:00:25]} 1-0


[Site "https://www.chess.com"]

[Event "Titled Tuesday Blitz January 03 Early 2023"]
[White "Kovacsy, Barnabas"]
[Black "Bayramov, Zaur"]
[WhiteFideId "769290"]
[BlackFideId "13405080"]
[WhiteElo "2245"]
[BlackElo "2276"]
[Result "0-1"]
[Round "02"]
[TimeControl "180+2"]
[Date "2023.01.03"]
[WhiteClock "0:00:48"]
[BlackClock "0:01:44"]

1. e4 {[%clk 0:02:59]}  g6 {[%clk 0:02:59]} 2. d4 {[%clk 0:02:57]}  Bg7 {[%clk 0:02:59]} 3. Nf3 {[%clk 0:02:54]}  d6 {[%clk 0:02:59]} 4. Be2 {[%clk 0:02:54]}  Nf6 {[%clk 0:03:00]} 5. Nc3 {[%clk 0:02:52]}  O-O {[%clk 0:03:00]} 6. O-O {[%clk 0:02:52]}  Nc6 {[%clk 0:02:59]} 7. h3 {[%clk 0:02:48]}  e5 {[%clk 0:02:59]} 8. dxe5 {[%clk 0:02:47]}  Nxe5 {[%clk 0:02:59]} 9. Nxe5 {[%clk 0:02:46]}  dxe5 {[%clk 0:02:59]} 10. Qxd8 {[%clk 0:02:46]}  Rxd8 {[%clk 0:03:00]} 11. Be3 {[%clk 0:02:46]}  c6 {[%clk 0:02:58]} 12. Rad1 {[%clk 0:02:46]}  Re8 {[%clk 0:02:55]} 13. Bc4 {[%clk 0:02:39]}  Be6 {[%clk 0:02:48]} 14. Bxe6 {[%clk 0:02:39]}  Rxe6 {[%clk 0:02:49]} 15. f3 {[%clk 0:02:37]}  Ree8 {[%clk 0:02:47]} 16. Rd2 {[%clk 0:02:37]}  h6 {[%clk 0:02:43]} 17. Rfd1 {[%clk 0:02:36]}  Bf8 {[%clk 0:02:43]} 18. a3 {[%clk 0:02:35]}  Kg7 {[%clk 0:02:42]} 19. Kf2 {[%clk 0:02:33]}  b6 {[%clk 0:02:39]} 20. Ne2 {[%clk 0:02:29]}  Be7 {[%clk 0:02:36]} 21. g3 {[%clk 0:02:22]}  Rec8 {[%clk 0:02:32]} 22. Nc1 {[%clk 0:02:11]}  h5 {[%clk 0:02:32]} 23. Nd3 {[%clk 0:02:07]}  Nd7 {[%clk 0:02:32]} 24. Nb4 {[%clk 0:01:55]}  Nc5 {[%clk 0:02:29]} 25. Nd3 {[%clk 0:01:53]}  Nxd3+ {[%clk 0:02:28]} 26. Rxd3 {[%clk 0:01:52]}  Kf6 {[%clk 0:02:23]} 27. Rd7 {[%clk 0:01:50]}  Ke6 {[%clk 0:02:23]} 28. c4 {[%clk 0:01:45]}  Rd8 {[%clk 0:02:16]} 29. Rxd8 {[%clk 0:01:43]}  Bxd8 {[%clk 0:02:16]} 30. Ke2 {[%clk 0:01:40]}  f5 {[%clk 0:02:16]} 31. Kd3 {[%clk 0:01:32]}  Be7 {[%clk 0:02:14]} 32. b4 {[%clk 0:01:25]}  Rd8+ {[%clk 0:02:09]} 33. Ke2 {[%clk 0:01:25]}  Rb8 {[%clk 0:02:06]} 34. Kd3 {[%clk 0:01:25]}  a5 {[%clk 0:02:05]} 35. Rb1 {[%clk 0:01:23]}  axb4 {[%clk 0:02:03]} 36. axb4 {[%clk 0:01:23]}  b5 {[%clk 0:01:59]} 37. cxb5 {[%clk 0:01:22]}  cxb5 {[%clk 0:01:54]} 38. Bd2 {[%clk 0:00:53]}  Rd8+ {[%clk 0:01:48]} 39. Ke3 {[%clk 0:00:48]}  fxe4 {[%clk 0:01:45]} 40. fxe4 {[%clk 0:00:48]}  Bg5+ {[%clk 0:01:44]} 0-1


[Site "https://www.chess.com"]

[Event "Titled Tuesday Blitz January 03 Early 2023"]
[White "Khumalo, Keith"]
[Black "Matveeva, Olga"]
[WhiteFideId "14319470"]
[BlackFideId "24107018"]
[WhiteElo "2099"]
[BlackElo "2128"]
[Result "1-0"]
[Round "02"]
[TimeControl "180+2"]
[Date "2023.01.03"]
[WhiteClock "0:02:18"]
[BlackClock "0:00:50"]

1. d4 {[%clk 0:03:00]}  d5 {[%clk 0:02:59]} 2. c4 {[%clk 0:03:01]}  e6 {[%clk 0:02:58]} 3. Nf3 {[%clk 0:03:01]}  Nf6 {[%clk 0:02:58]} 4. g3 {[%clk 0:03:02]}  Bb4+ {[%clk 0:02:57]} 5. Bd2 {[%clk 0:03:02]}  Be7 {[%clk 0:02:57]} 6. Qc2 {[%clk 0:03:02]}  O-O {[%clk 0:02:57]} 7. Bg2 {[%clk 0:03:03]}  Nbd7 {[%clk 0:02:57]} 8. O-O {[%clk 0:03:01]}  c6 {[%clk 0:02:57]} 9. Bf4 {[%clk 0:03:01]}  b6 {[%clk 0:02:56]} 10. Nbd2 {[%clk 0:03:02]}  Bb7 {[%clk 0:02:55]} 11. e4 {[%clk 0:03:02]}  dxe4 {[%clk 0:02:43]} 12. Nxe4 {[%clk 0:03:03]}  Nxe4 {[%clk 0:02:42]} 13. Qxe4 {[%clk 0:03:04]}  Nf6 {[%clk 0:02:43]} 14. Qe2 {[%clk 0:03:04]}  c5 {[%clk 0:02:38]} 15. Rfd1 {[%clk 0:03:04]}  Qc8 {[%clk 0:02:33]} 16. d5 {[%clk 0:03:04]}  Rd8 {[%clk 0:02:16]} 17. Bh3 {[%clk 0:03:01]}  Nxd5 {[%clk 0:02:07]} 18. cxd5 {[%clk 0:03:00]}  Bxd5 {[%clk 0:02:06]} 19. Bg2 {[%clk 0:02:47]}  Qb7 {[%clk 0:02:05]} 20. Ne1 {[%clk 0:02:46]}  Bxg2 {[%clk 0:02:02]} 21. Nxg2 {[%clk 0:02:47]}  Bf6 {[%clk 0:02:02]} 22. Be5 {[%clk 0:02:46]}  Bxe5 {[%clk 0:01:56]} 23. Qxe5 {[%clk 0:02:47]}  Qf3 {[%clk 0:01:56]} 24. Rxd8+ {[%clk 0:02:41]}  Rxd8 {[%clk 0:01:57]} 25. Qe3 {[%clk 0:02:40]}  Qd5 {[%clk 0:01:47]} 26. a3 {[%clk 0:02:33]}  h6 {[%clk 0:01:46]} 27. Nf4 {[%clk 0:02:33]}  Qc4 {[%clk 0:01:30]} 28. Rc1 {[%clk 0:02:31]}  Qa2 {[%clk 0:01:26]} 29. Qe2 {[%clk 0:02:29]}  Qb3 {[%clk 0:01:25]} 30. Qc2 {[%clk 0:02:28]}  Qf3 {[%clk 0:01:20]} 31. Qe2 {[%clk 0:02:22]}  Qxe2 {[%clk 0:01:14]} 32. Nxe2 {[%clk 0:02:21]}  Rd2 {[%clk 0:01:14]} 33. Nc3 {[%clk 0:02:19]}  Rxb2 {[%clk 0:01:13]} 34. a4 {[%clk 0:02:19]}  Kf8 {[%clk 0:01:12]} 35. Kg2 {[%clk 0:02:16]}  Ke7 {[%clk 0:01:12]} 36. Nb5 {[%clk 0:02:16]}  Ra2 {[%clk 0:00:58]} 37. Nxa7 {[%clk 0:02:16]}  Rxa4 {[%clk 0:00:57]} 38. Nc8+ {[%clk 0:02:17]}  Kf6 {[%clk 0:00:55]} 39. Nxb6 {[%clk 0:02:18]}  Rb4 {[%clk 0:00:54]} 40. Nd7+ {[%clk 0:02:17]}  Kg6 {[%clk 0:00:54]} 41. Nxc5 {[%clk 0:02:18]}  Rb2 {[%clk 0:00:54]} 42. Nd3 {[%clk 0:02:18]}  Ra2 {[%clk 0:00:53]} 43. Rc7 {[%clk 0:02:18]}  f6 {[%clk 0:00:52]} 44. Nf4+ {[%clk 0:02:18]}  Kf5 {[%clk 0:00:51]} 45. Rxg7 {[%clk 0:02:18]}  e5 {[%clk 0:00:50]} 46. Nd5 {[%clk 0:02:18]} 1-0


[Site "https://www.chess.com"]

[Event "Titled Tuesday Blitz January 03 Early 2023"]
[White "Renjith, Sravan"]
[Black "Liu, Kelsey"]
[WhiteFideId "4306783"]
[BlackFideId "30944481"]
[WhiteElo "2172"]
[BlackElo "2065"]
[Result "1-0"]
[Round "02"]
[TimeControl "180+2"]
[Date "2023.01.03"]
[WhiteClock "0:02:04"]
[BlackClock "0:01:03"]

1. d4 {[%clk 0:03:00]}  Nf6 {[%clk 0:02:53]} 2. Bf4 {[%clk 0:03:00]}  e6 {[%clk 0:02:53]} 3. e3 {[%clk 0:02:53]}  d5 {[%clk 0:02:51]} 4. Nf3 {[%clk 0:02:51]}  Be7 {[%clk 0:02:51]} 5. Bd3 {[%clk 0:02:48]}  c5 {[%clk 0:02:42]} 6. c3 {[%clk 0:02:48]}  Nc6 {[%clk 0:02:42]} 7. O-O {[%clk 0:02:46]}  O-O {[%clk 0:02:41]} 8. Nbd2 {[%clk 0:02:39]}  Re8 {[%clk 0:02:40]} 9. h3 {[%clk 0:02:34]}  Bd6 {[%clk 0:02:39]} 10. Ne5 {[%clk 0:02:30]}  Ne7 {[%clk 0:02:28]} 11. Ndf3 {[%clk 0:02:28]}  Nf5 {[%clk 0:02:28]} 12. Ng5 {[%clk 0:02:26]}  Rf8 {[%clk 0:02:11]} 13. g4 {[%clk 0:02:21]}  Nh4 {[%clk 0:02:06]} 14. Bg3 {[%clk 0:02:17]}  Ng6 {[%clk 0:02:05]} 15. f4 {[%clk 0:02:16]}  Bc7 {[%clk 0:01:37]} 16. h4 {[%clk 0:02:14]}  h6 {[%clk 0:01:35]} 17. Ngxf7 {[%clk 0:02:15]}  Rxf7 {[%clk 0:01:35]} 18. Bxg6 {[%clk 0:02:15]}  Rf8 {[%clk 0:01:27]} 19. g5 {[%clk 0:02:14]}  Nh7 {[%clk 0:01:15]} 20. Qh5 {[%clk 0:02:11]}  Rf5 {[%clk 0:01:03]} 21. Bxf5 {[%clk 0:02:09]}  exf5 {[%clk 0:01:03]} 22. Qf7+ {[%clk 0:02:04]} 1-0


[Site "https://www.chess.com"]

[Event "Titled Tuesday Blitz January 03 Early 2023"]
[White "Zainullina, Nataliya"]
[Black "Bayo Milagro, Alvaro"]
[WhiteFideId "4145488"]
[BlackFideId "22275240"]
[WhiteElo "2099"]
[BlackElo "2287"]
[Result "0-1"]
[Round "02"]
[TimeControl "180+2"]
[Date "2023.01.03"]
[WhiteClock "0:01:51"]
[BlackClock "0:02:02"]

1. Nf3 {[%clk 0:02:59]}  Nf6 {[%clk 0:02:53]} 2. c4 {[%clk 0:02:59]}  c5 {[%clk 0:02:52]} 3. Nc3 {[%clk 0:02:57]}  d5 {[%clk 0:02:52]} 4. cxd5 {[%clk 0:02:56]}  Nxd5 {[%clk 0:02:53]} 5. e4 {[%clk 0:02:57]}  Nxc3 {[%clk 0:02:50]} 6. bxc3 {[%clk 0:02:57]}  g6 {[%clk 0:02:50]} 7. d4 {[%clk 0:02:57]}  Bg7 {[%clk 0:02:51]} 8. Bc4 {[%clk 0:02:55]}  O-O {[%clk 0:02:51]} 9. O-O {[%clk 0:02:56]}  Bg4 {[%clk 0:02:48]} 10. Rb1 {[%clk 0:02:55]}  cxd4 {[%clk 0:02:47]} 11. cxd4 {[%clk 0:02:52]}  Nc6 {[%clk 0:02:45]} 12. Rxb7 {[%clk 0:02:52]}  Nxd4 {[%clk 0:02:45]} 13. Be2 {[%clk 0:02:51]}  Bxf3 {[%clk 0:02:37]} 14. Bxf3 {[%clk 0:02:50]}  e6 {[%clk 0:02:34]} 15. Be3 {[%clk 0:02:44]}  Nxf3+ {[%clk 0:02:30]} 16. Qxf3 {[%clk 0:02:43]}  Qa5 {[%clk 0:02:31]} 17. Qe2 {[%clk 0:02:30]}  Rfb8 {[%clk 0:02:28]} 18. Rfb1 {[%clk 0:02:29]}  Rxb7 {[%clk 0:02:26]} 19. Rxb7 {[%clk 0:02:26]}  Qc3 {[%clk 0:02:26]} 20. g3 {[%clk 0:02:21]}  Qc6 {[%clk 0:02:24]} 21. Rb4 {[%clk 0:02:17]}  a5 {[%clk 0:02:19]} 22. Rc4 {[%clk 0:02:16]}  Qb7 {[%clk 0:02:17]} 23. Qc2 {[%clk 0:02:15]}  Rb8 {[%clk 0:02:10]} 24. h3 {[%clk 0:02:11]}  h5 {[%clk 0:02:09]} 25. Kh2 {[%clk 0:02:10]}  h4 {[%clk 0:02:08]} 26. Rc7 {[%clk 0:02:08]}  hxg3+ {[%clk 0:02:08]} 27. fxg3 {[%clk 0:02:07]}  Qb2 {[%clk 0:02:08]} 28. Kg2 {[%clk 0:01:57]}  Be5 {[%clk 0:02:01]} 29. Rc8+ {[%clk 0:01:54]}  Rxc8 {[%clk 0:02:01]} 30. Qxb2 {[%clk 0:01:51]}  Bxb2 {[%clk 0:02:02]} 0-1


[Site "https://www.chess.com"]